bitfinex/quotes_SOLUSD_20241115
["timestamp","ask_amount","ask_price","bid_price","bid_amount"]
[1731701779801,24.16089958,214.04,213.97,12.97279958]
[1731701780727,6.516,214.04,213.99,12.97279958]
[1731701781019,6.516,214.04,214.01,12.97279958]
[1731701781199,6.516,214.04,214.0,12.97279958]
[1731701781598,15.8599,214.08,214.02,12.97279958]
[1731701782003,15.8599,214.08,214.03,12.97279958]
[1731701782225,15.8599,214.08,214.01,12.97279958]
[1731701782430,15.8599,214.08,214.04,12.97279958]
[1731701782601,6.9734169,214.1,214.0,16.355]
[1731701782804,6.9734169,214.1,214.05,12.97279958]
[1731701783006,6.9734169,214.1,214.04,12.97279958]
[1731701783714,6.9734169,214.1,214.05,12.97279958]
[1731701783924,6.9734169,214.1,214.06,12.97279958]
[1731701784419,6.9734169,214.1,214.05,12.97279958]
[1731701785600,19.94621648,214.1,214.03,17.64489958]
[1731701785806,6.9734169,214.1,214.04,12.97279958]
[1731701786007,6.9734169,214.1,214.03,17.64489958]
[1731701786419,12.97279958,214.09,214.01,24.65439958]
[1731701786707,12.97279958,214.08,214.01,11.6816]
[1731701786912,17.64409958,214.08,214.01,11.6816]
[1731701787115,12.97279958,214.07,214.01,11.6816]
[1731701787411,4.6713,214.08,214.02,12.97279958]
[1731701787926,6.9734169,214.1,214.04,12.97279958]
[1731701788111,6.9734169,214.1,214.05,12.97279958]
[1731701788502,6.9734169,214.1,214.04,12.97279958]
[1731701788709,6.9734169,214.1,214.03,12.97279958]
[1731701789023,17.64369958,214.09,214.01,24.65439958]
[1731701789228,17.64369958,214.09,214.01,29.32689958]
[1731701789910,12.97279958,214.08,214.01,16.3541]
[1731701790830,12.97279958,214.06,213.98,12.97279958]
[1731701791032,12.97279958,214.05,213.98,12.97279958]
[1731701791328,12.97279958,214.06,213.98,17.64599958]
[1731701791711,12.97279958,214.05,213.98,17.64599958]
[1731701792425,12.97279958,214.06,213.99,12.97279958]
[1731701792926,12.97279958,214.08,214.01,12.97279958]
[1731701794227,17.64399958,214.08,214.01,17.64539958]
[1731701794406,12.97279958,214.05,213.98,24.65609958]
[1731701794611,12.97279958,214.02,213.96,4.6736]
[1731701794926,12.97279958,214.02,213.93,11.6856]
[1731701794927,12.97279958,214.05,213.92,4.6746]
[1731701795926,17.64459958,214.05,213.92,20.25098]
[1731701796123,12.97279958,214.04,213.92,20.25098]
[1731701796333,12.97279958,214.04,213.96,12.97279958]
[1731701796828,12.97279958,214.04,213.97,12.97279958]
[1731701797032,12.97279958,214.04,213.97,17.64619958]
[1731701797936,17.64459958,214.05,213.98,12.97279958]
[1731701798118,12.97279958,214.04,213.97,29.32999958]
[1731701798439,17.64389958,214.08,214.0,12.97279958]
[1731701798630,17.64389958,214.08,214.01,12.97279958]
[1731701798936,17.64389958,214.08,214.01,17.64539958]
[1731701799432,6.9734169,214.1,214.04,12.97279958]
[1731701799850,6.9734169,214.1,214.05,12.97279958]
[1731701800125,6.9734169,214.1,214.04,12.97279958]
[1731701800430,19.94621648,214.1,214.03,12.97279958]
[1731701800621,6.9734169,214.1,214.04,12.97279958]
[1731701801023,19.94621648,214.1,214.04,4.6719]
[1731701801225,17.64369958,214.09,214.02,17.64509958]
[1731701801429,12.97279958,214.06,214.01,11.6816]
[1731701802729,12.97279958,214.05,214.01,11.6816]
[1731701802929,12.97279958,214.04,214.01,11.6816]
[1731701803523,12.97279958,214.05,214.01,11.6816]
[1731701803726,12.97279958,214.02,213.94,12.97279958]
[1731701803912,12.97279958,213.99,213.91,12.97279958]
[1731701804335,12.97279958,213.97,213.9,12.97279958]
[1731701804633,12.97279958,213.96,213.88,29.33699958]
[1731701805023,12.97279958,213.96,213.89,12.97279958]
[1731701805210,12.97279958,213.97,213.9,12.97279958]
[1731701805528,12.97279958,213.96,213.89,12.97279958]
[1731701806332,12.97279958,213.96,213.87,23.3786]
[1731701806333,12.97279958,213.98,213.91,12.97279958]
[1731701806535,6.3665,213.99,213.93,12.97279958]
[1731701806845,6.3665,213.99,213.92,12.97279958]
[1731701807635,6.3665,213.99,213.93,4.6744]
[1731701808032,15.0783,214.04,213.96,12.97279958]
[1731701808033,12.97279958,214.03,213.96,12.97279958]
[1731701808224,6.3288,214.05,214.0,12.97279958]
[1731701808639,6.3288,214.05,214.01,12.97279958]
[1731701808814,12.97279958,214.07,214.0,12.97279958]
[1731701809015,12.97279958,214.08,214.01,12.97279958]
[1731701809238,34.65959958,214.09,214.02,12.97279958]
[1731701809541,12.97279958,214.07,214.0,4.6728]
[1731701809721,21.6868,214.09,214.03,12.97279958]
[1731701810122,34.65959958,214.09,214.02,12.97279958]
[1731701810524,12.97279958,214.08,214.01,12.97279958]
[1731701810843,47.10427116,214.09,214.02,20.74657116]
[1731701811548,0.4574169,214.1,214.04,20.74657116]
[1731701811726,0.4574169,214.1,214.04,25.41847116]
[1731701812253,21.20398806,214.1,214.03,32.42667116]
[1731701812427,21.20398806,214.1,214.03,11.6801]
[1731701812428,20.74657116,214.09,214.03,11.6801]
[1731701812743,25.87478806,214.1,214.03,16.3523]
[1731701813435,20.74657116,214.06,213.98,16.60708]
[1731701813620,20.74657116,214.07,214.0,25.41937116]
[1731701813821,20.74657116,214.07,214.0,37.10157116]
[1731701814236,20.74657116,214.08,214.01,20.74657116]
[1731701814743,4.671,214.09,214.02,25.41897116]
[1731701814744,20.74657116,214.09,214.02,25.41897116]
[1731701815250,5.1281169,214.1,214.03,20.74657116]
[1731701815547,0.4574169,214.1,214.05,20.74657116]
[1731701816124,0.4574169,214.1,214.06,20.74657116]
[1731701816818,0.4574169,214.1,214.07,20.74657116]
[1731701817142,0.4574169,214.1,213.98,0.22549]
[1731701817143,0.4574169,214.1,214.08,20.74657116]
[1731701817639,0.4574169,214.1,214.09,20.74657116]
[1731701818242,0.4574169,214.1,214.08,20.74657116]
[1731701818936,0.4574169,214.1,214.07,20.74657116]
[1731701819142,0.4574169,214.1,214.08,20.74657116]
[1731701819336,0.4574169,214.1,214.09,20.74657116]
[1731701819725,0.4574169,214.1,214.08,20.74657116]
[1731701819929,0.4574169,214.1,214.06,11.6785]
[1731701819930,0.4574169,214.1,214.09,20.74657116]
[1731701820125,0.4574169,214.1,214.08,20.74657116]
[1731701820321,0.4574169,214.1,214.06,32.42507116]
[1731701820522,0.4574169,214.1,214.07,20.74657116]
[1731701820720,0.4574169,214.1,214.09,20.74657116]
[1731701820946,0.4574169,214.1,214.06,11.6785]
[1731701821143,0.4574169,214.1,214.06,32.42507116]
[1731701821439,0.4574169,214.1,214.09,20.34465462]
[1731701821620,0.4574169,214.1,214.09,41.09122578]
[1731701822246,0.4574169,214.1,214.09,69.53900978]
[1731701822743,0.4574169,214.1,214.09,32.06079961]
[1731701822958,0.4574169,214.1,214.09,45.76212578]
[1731701823330,0.4574169,214.1,214.09,4.79639]
[1731701823533,0.4574169,214.1,214.07,37.09617116]
[1731701823934,21.20398806,214.1,214.03,25.41867116]
[1731701824235,0.4574169,214.1,214.07,20.74657116]
[1731701825245,0.4574169,214.1,214.07,25.41787116]
[1731701825754,0.4574169,214.1,214.09,20.74657116]
[1731701826448,0.4574169,214.1,214.08,20.74657116]
[1731701827145,0.4574169,214.1,214.09,4.6709]
[1731701829332,0.4574169,214.1,214.05,4.6717]
[1731701829539,0.4574169,214.1,214.08,20.74657116]
[1731701829747,0.4574169,214.1,214.09,20.74657116]
[1731701830552,0.4574169,214.1,214.09,25.41747116]
[1731701830754,0.4574169,214.1,214.09,4.6709]
[1731701832132,0.4574169,214.1,214.09,17.75472624]
[1731701832532,0.4574169,214.1,214.09,4.79639]
[1731701832751,0.4574169,214.1,214.09,17.75472624]
[1731701832961,0.4574169,214.1,214.09,17.97389086]
[1731701833255,0.4574169,214.1,214.09,37.97389086]
[1731701834151,0.4574169,214.1,214.09,17.88021624]
[1731701834328,0.4574169,214.1,214.09,17.75472624]
[1731701834534,0.4574169,214.1,214.09,17.97389086]
[1731701834738,0.4574169,214.1,214.09,45.29102363]
[1731701835439,0.4574169,214.1,214.09,45.19734901]
[1731701835745,0.4574169,214.1,214.09,17.88021624]
[1731701839843,0.4574169,214.1,214.09,17.97389086]
[1731701842038,0.4574169,214.1,214.09,45.29102363]
[1731701842481,0.4574169,214.1,214.09,25.19734901]
[1731701842757,0.4574169,214.1,214.09,17.88021624]
[1731701843164,0.4574169,214.1,214.09,4.6709]
[1731701843543,0.4574169,214.1,214.04,37.59667224]
[1731701843745,12.95833624,214.08,214.05,4.6716]
[1731701843974,12.95833624,214.08,214.01,23.3633]
[1731701844259,12.95833624,214.06,213.99,12.95833624]
[1731701844461,12.95833624,214.03,213.98,16.3566]
[1731701844672,12.95833624,214.02,213.98,16.3566]
[1731701844845,12.95833624,214.03,213.98,16.3566]
[1731701845364,12.95833624,214.01,213.96,4.6736]
[1731701845858,12.95833624,213.99,213.94,4.674]
[1731701846359,12.95833624,213.99,213.93,11.6856]
[1731701846657,12.95833624,214.0,213.93,11.6856]
[1731701846957,22.3967,214.03,213.98,12.95833624]
[1731701847366,22.3967,214.03,213.96,12.95833624]
[1731701847943,22.3967,214.03,213.98,29.31493624]
[1731701848139,4.671,214.09,213.98,29.31493624]
[1731701848140,35.07283624,214.08,214.01,12.95833624]
[1731701848448,22.1145,214.08,214.02,12.95833624]
[1731701848857,22.1145,214.08,214.01,12.95833624]
[1731701849171,22.1145,214.08,214.03,12.95833624]
[1731701849662,22.1145,214.08,214.02,12.95833624]
[1731701850051,12.95833624,214.07,214.02,11.6808]
[1731701850253,26.7857,214.08,213.93,15.1052]
[1731701850254,12.95833624,214.04,213.97,11.6835]
[1731701850964,26.7857,214.08,214.0,12.95833624]
[1731701850965,35.07283624,214.08,214.0,12.95833624]
[1731701851143,35.07283624,214.08,214.01,12.95833624]
[1731701851348,22.1145,214.08,214.01,12.95833624]
[1731701851547,22.1145,214.08,214.02,12.95833624]
[1731701852451,22.1145,214.08,214.01,17.63073624]
[1731701852964,12.95833624,214.07,214.01,4.6724]
[1731701853157,39.74403624,214.08,214.01,4.6724]
[1731701853968,12.95833624,214.06,213.99,4.6731]
[1731701854165,12.95833624,214.04,213.97,29.31523624]
[1731701854370,12.95833624,214.05,213.97,29.31523624]
[1731701854958,12.95833624,214.03,213.97,16.3569]
[1731701855270,12.95833624,214.04,213.97,16.3569]
[1731701855457,17.63043624,214.04,213.97,16.3569]
[1731701855768,12.95833624,213.98,213.92,11.686]
[1731701855968,12.95833624,213.97,213.92,11.686]
[1731701856275,12.95833624,213.99,213.92,29.31893624]
[1731701856767,12.95833624,213.97,213.92,16.3606]
[1731701857067,12.95833624,213.98,213.92,16.3606]
[1731701857267,12.95833624,213.98,213.91,12.95833624]
[1731701857268,12.95833624,213.96,213.88,17.63363624]
[1731701857470,12.95833624,214.0,213.93,12.95833624]
[1731701857766,21.6773,214.03,213.89,0.09367462]
[1731701857767,26.3496,214.03,213.89,0.09367462]
[1731701857972,26.3496,214.03,213.88,4.6753]
[1731701858667,12.95833624,213.97,213.9,12.95833624]
[1731701858866,12.95833624,213.99,213.91,12.95833624]
[1731701859059,12.95833624,214.0,213.92,12.95833624]
[1731701859259,4.6731,213.99,213.94,12.95833624]
[1731701859459,4.6731,213.99,213.91,16.3618]
[1731701859460,17.63143624,213.99,213.89,4.6751]
[1731701859660,12.95833624,213.95,213.88,12.95833624]
[1731701860573,12.95833624,213.94,213.87,4.6755]
[1731701860776,12.95833624,213.95,213.87,17.63383624]
[1731701860968,4.6731,213.99,213.91,12.95833624]
[1731701861273,12.95833624,213.98,213.91,12.95833624]
[1731701861462,12.95833624,213.97,213.9,12.95833624]
[1731701861875,12.95833624,213.97,213.89,17.63333624]
[1731701862173,4.6724,214.02,213.89,16.3632]
[1731701862364,12.95833624,214.0,213.89,16.3632]
[1731701862559,12.95833624,213.97,213.89,16.3632]
[1731701862762,4.6724,214.02,213.89,16.3632]
[1731701863068,4.6724,214.02,213.94,12.95833624]
[1731701863268,17.63103624,214.01,213.94,12.95833624]
[1731701863573,12.95833624,214.0,213.94,4.6741]
[1731701863758,12.95833624,214.0,213.92,24.64443624]
[1731701863958,12.95833624,214.0,213.92,29.31893624]
[1731701864269,4.6727,214.01,213.94,12.95833624]
[1731701864270,17.63103624,214.01,213.94,12.95833624]
[1731701864463,21.6773,214.03,213.92,16.3606]
[1731701864464,21.6773,214.03,213.96,12.95833624]
[1731701864648,12.95833624,214.02,213.94,12.95833624]
[1731701864853,12.95833624,214.0,213.92,29.31893624]
[1731701865572,17.63123624,214.0,213.92,29.31893624]
[1731701866077,12.95833624,214.01,213.94,12.95833624]
[1731701866454,12.95833624,214.02,213.95,12.95833624]
[1731701866659,21.6773,214.03,213.96,12.95833624]
[1731701866871,34.63563624,214.03,213.96,12.95833624]
[1731701869452,17.63033624,214.05,213.97,29.31563624]
[1731701869878,12.95833624,214.04,213.92,15.7834]
[1731701870185,12.95833624,214.06,213.99,12.95833624]
[1731701870370,12.95833624,214.05,213.94,0.34465462]
[1731701870558,12.95833624,214.05,213.97,12.95833624]
[1731701871261,17.63013624,214.05,213.98,4.6733]
[1731701871463,12.95833624,214.04,213.97,12.95833624]
[1731701871678,12.95833624,214.04,213.98,0.12549]
[1731701872684,12.95833624,214.02,213.96,11.6839]
[1731701872869,12.95833624,214.02,213.96,16.3576]
[1731701873590,4.6713,214.07,214.0,12.95833624]
[1731701873766,17.62963624,214.07,214.01,0.12549]
[1731701874184,4.6713,214.07,214.01,13.08382624]
[1731701874482,4.6718,214.05,214.0,0.12549]
[1731701874688,17.63013624,214.05,214.0,0.12549]
[1731701874877,17.63013624,214.05,213.99,0.12549]
[1731701875478,12.95833624,214.04,213.99,0.12549]
[1731701876268,12.95833624,214.05,213.99,0.12549]
[1731701876467,12.95833624,214.05,214.0,0.12549]
[1731701876668,12.95833624,214.06,214.0,0.12549]
[1731701877562,12.95833624,214.05,214.0,0.12549]
[1731701878266,12.95833624,214.05,214.01,0.12549]
[1731701878463,21.6312,214.08,214.01,0.12549]
[1731701878464,21.6312,214.08,214.01,13.08382624]
[1731701879194,21.6312,214.08,214.02,12.95833624]
[1731701879376,21.6312,214.08,214.03,0.12549]
[1731701879566,12.95833624,214.05,214.01,0.12549]
[1731701879890,12.95833624,214.05,214.0,0.12549]
[1731701880186,12.95833624,214.02,213.97,4.6735]
[1731701880392,4.6715,214.07,213.97,4.6735]
[1731701880393,12.95833624,214.04,213.97,29.31563624]
[1731701880571,12.95833624,214.05,213.97,29.31563624]
[1731701880764,21.6312,214.08,214.01,12.95833624]
[1731701880976,21.6312,214.08,213.97,16.3573]
[1731701880977,12.95833624,214.06,213.99,12.95833624]
[1731701881383,12.95833624,214.06,214.0,0.12549]
[1731701881559,12.95833624,214.07,214.0,12.95833624]
[1731701881763,12.95833624,214.07,214.01,4.79809]
[1731701881987,34.08953624,214.08,214.01,4.79809]
[1731701882197,12.95833624,214.07,214.01,4.79809]
[1731701882492,12.95833624,214.06,214.01,16.47969]
[1731701882867,21.1312,214.08,214.01,29.43802624]
[1731701883069,34.08953624,214.08,214.01,29.43802624]
[1731701883268,12.95833624,214.07,214.01,16.47969]
[1731701884681,12.95833624,214.06,214.01,11.80709]
[1731701884886,12.95833624,214.05,214.01,11.80709]
[1731701885198,12.95833624,214.07,214.01,16.47969]
[1731701885710,0.4574169,214.1,214.07,4.79679]
[1731701886011,0.4574169,214.1,214.08,12.95833624]
[1731701886188,0.4574169,214.1,214.09,13.08382624]
[1731701886807,0.4574169,214.1,214.09,0.12549]
[1731701886991,0.4574169,214.1,214.08,0.12549]
[1731701887317,0.4574169,214.1,214.07,11.6784]
[1731701887519,0.4574169,214.1,214.07,16.3497]
[1731701887878,0.4574169,214.1,214.07,11.6784]
[1731701890070,0.4574169,214.1,214.05,0.12549]
[1731701890268,0.4574169,214.1,214.09,0.12549]
[1731701890474,0.4574169,214.1,214.09,13.08382624]
[1731701891570,0.4574169,214.1,214.09,13.30299086]
[1731701891976,0.4574169,214.1,214.09,37.07987486]
[1731701892277,0.4574169,214.1,214.09,41.75077486]
[1731701892596,0.4574169,214.1,214.09,28.79243862]
[1731701892779,0.4574169,214.1,214.09,41.75077486]
[1731701893983,0.4574169,214.1,214.09,68.18197486]
[1731701894211,7.30154028,214.25,214.12,0.21916462]
[1731701894436,7.30154028,214.26,214.2,12.95833624]
[1731701894707,12.95833624,214.25,214.18,0.12549]
[1731701895189,14.60308056,214.27,214.18,0.12549]
[1731701895190,20.25987652,214.27,214.19,12.95833624]
[1731701895488,11.96864028,214.27,214.16,12.95833624]
[1731701895690,12.95833624,214.24,214.17,0.12549]
[1731701895997,12.95833624,214.24,214.18,4.6689]
[1731701896716,12.95833624,214.23,214.18,4.6689]
[1731701896903,12.95833624,214.21,214.16,11.6732]
[1731701897209,12.95833624,214.22,214.16,16.3426]
[1731701899376,12.95833624,214.25,214.17,0.12549]
[1731701899579,12.95833624,214.27,214.2,12.95833624]
[1731701899797,12.95833624,214.28,214.2,12.95833624]
[1731701900796,12.95833624,214.28,214.21,4.6683]
[1731701901294,12.95833624,214.28,214.21,17.62663624]
[1731701901675,66.83510399,214.29,214.22,12.95833624]
[1731701902291,66.83510399,214.29,214.21,16.339]
[1731701902292,12.95833624,214.28,214.21,29.29733624]
[1731701903503,54.63755693,214.29,214.21,29.29733624]
[1731701903504,12.95833624,214.26,214.21,11.6707]
[1731701904208,12.95833624,214.28,214.22,0.12549]
[1731701904579,12.95833624,214.27,214.22,0.12549]
[1731701904790,12.95833624,214.28,214.22,0.12549]
[1731701904990,12.95833624,214.27,214.22,0.12549]
[1731701905397,45.70259317,214.29,214.24,4.6676]
[1731701905584,12.95833624,214.26,214.24,4.6676]
[1731701905779,12.95833624,214.26,214.22,4.79339]
[1731701905981,12.95833624,214.25,214.21,11.6707]
[1731701906279,12.95833624,214.23,214.21,11.6707]
[1731701907193,12.95833624,214.23,214.21,16.339]
[1731701907396,12.95833624,214.23,214.21,11.6707]
[1731701907578,12.95833624,214.28,214.19,4.6686]
[1731701907579,12.95833624,214.22,214.19,4.6686]
[1731701907999,12.95833624,214.23,214.19,4.6686]
[1731701908474,12.95833624,214.24,214.19,4.6686]
[1731701908683,12.95833624,214.25,214.19,16.3404]
[1731701909292,12.95833624,214.26,214.2,0.12549]
[1731701909489,12.95833624,214.27,214.2,13.08382624]
[1731701909693,12.95833624,214.27,214.21,16.339]
[1731701909883,12.95833624,214.23,214.22,0.12549]
[1731701910207,12.95833624,214.27,214.22,0.12549]
[1731701910583,12.95833624,214.26,214.22,0.12549]
[1731701911480,12.95833624,214.26,214.23,4.6678]
[1731701911897,12.95833624,214.27,214.23,4.6678]
[1731701912082,12.95833624,214.28,214.23,16.3375]
[1731701912287,23.9495066,214.29,214.23,16.3375]
[1731701912288,12.95833624,214.25,214.24,0.12549]
[1731701913094,12.95833624,214.27,214.24,0.12549]
[1731701914011,12.95833624,214.27,214.24,4.79299]
[1731701914787,23.9495066,214.29,214.24,4.79299]
[1731701914990,23.9495066,214.29,214.24,16.46209]
[1731701915311,12.95833624,214.28,214.24,16.46209]
[1731701916610,12.95833624,214.3,214.24,16.46209]
[1731701916908,12.95833624,214.29,214.24,16.46209]
[1731701917308,12.95833624,214.27,214.24,16.46209]
[1731701918198,12.95833624,214.29,214.24,16.46209]
[1731701918394,0.4574169,214.31,214.28,12.95833624]
[1731701918597,0.4574169,214.31,214.25,0.12549]
[1731701918891,13.41575314,214.31,214.26,0.12549]
[1731701919306,12.95833624,214.28,214.25,0.21916462]
[1731701919514,0.4574169,214.31,214.25,0.21916462]
[1731701919817,12.95833624,214.29,214.25,0.21916462]
[1731701920013,0.4574169,214.31,214.25,0.21916462]
[1731701920191,0.4574169,214.31,214.27,16.3345]
[1731701920386,13.41575314,214.31,214.28,0.12549]
[1731701920594,0.4574169,214.31,214.28,0.12549]
[1731701921411,0.4574169,214.31,214.3,29.95579086]
[1731701922193,0.4574169,214.31,214.3,50.05579086]
[1731701922392,0.4574169,214.31,214.3,78.49897486]
[1731701922624,22.77829081,214.34,214.33,0.44465462]
[1731701922793,22.77829081,214.34,214.33,37.17987486]
[1731701923189,22.77829081,214.34,214.33,57.17987486]
[1731701923417,22.77829081,214.34,214.33,33.40299086]
[1731701923614,22.77829081,214.34,214.33,20.34465462]
[1731701923792,22.77829081,214.34,214.33,33.30299086]
[1731701924327,22.77829081,214.34,214.33,38.06869086]
[1731701924628,23.33600821,214.34,214.33,38.06869086]
[1731701925910,22.83600821,214.34,214.33,38.06869086]
[1731701926720,22.83600821,214.34,214.33,37.96869086]
[1731701927224,22.83600821,214.34,214.33,38.06869086]
[1731701927447,22.83600821,214.34,214.33,61.84557486]
[1731701930323,22.83600821,214.34,214.33,38.06869086]
[1731701931021,22.83600821,214.34,214.33,61.84557486]
[1731701932631,22.83600821,214.34,214.33,67.84929517]
[1731701933125,22.71060821,214.34,214.33,67.84929517]
[1731701934012,19.01880821,214.34,214.33,74.26789232]
[1731701934318,18.51880821,214.34,214.33,78.82960815]
[1731701935820,22.5261,214.51,214.41,0.21916462]
[1731701936001,22.5261,214.51,214.45,12.95833624]
[1731701936207,35.48443624,214.51,214.44,12.95833624]
[1731701936915,0.4367607,214.52,214.47,12.95833624]
[1731701937305,0.4367607,214.52,214.46,12.95833624]
[1731701937505,0.4367607,214.52,214.47,16.3192]
[1731701937705,0.4367607,214.52,214.48,0.12549]
[1731701937906,0.4367607,214.52,214.49,12.95833624]
[1731701938208,0.4367607,214.52,214.5,0.12549]
[1731701938709,0.4367607,214.52,214.48,13.20931624]
[1731701939317,0.4367607,214.52,214.5,0.12549]
[1731701939521,0.4367607,214.52,214.5,0.25098]
[1731701940126,0.4367607,214.52,214.5,13.20931624]
[1731701940309,0.4367607,214.52,214.51,12.95833624]
[1731701940809,0.4367607,214.52,214.5,13.08382624]
[1731701941008,0.4367607,214.52,214.49,16.3177]
[1731701941207,13.39509694,214.52,214.49,11.6555]
[1731701941507,13.39509694,214.52,214.45,12.95833624]
[1731701941713,0.4367607,214.52,214.46,12.95833624]
[1731701942025,13.39509694,214.52,214.46,11.6571]
[1731701942222,12.95833624,214.5,214.46,11.6571]
[1731701942412,12.95833624,214.51,214.46,11.6571]
[1731701942725,0.4367607,214.52,214.46,11.6571]
[1731701943026,0.4367607,214.52,214.48,12.95833624]
[1731701943409,0.4367607,214.52,214.49,16.3177]
[1731701944116,0.4367607,214.52,214.49,29.27603624]
[1731701944317,0.4367607,214.52,214.49,16.3177]
[1731701945428,0.4367607,214.52,214.49,12.95833624]
[1731701945613,0.4367607,214.52,214.5,0.12549]
[1731701945929,0.4367607,214.52,214.51,20.21269912]
[1731701946440,0.4367607,214.52,214.51,33.30299086]
[1731701947114,0.4367607,214.52,214.51,40.21269912]
[1731701947602,0.4367607,214.52,214.51,44.87439912]
[1731701948211,0.4367607,214.52,214.51,37.96469086]
[1731701949528,0.4367607,214.52,214.51,38.06469086]
[1731701950421,0.4367607,214.52,214.51,44.64679912]
[1731701951825,0.4367607,214.52,214.51,68.42368312]
[1731701952016,0.4367607,214.52,214.51,74.70184788]
[1731701952333,0.4367607,214.52,214.51,74.80184788]
[1731701952718,0.4367607,214.52,214.51,79.43689704]
[1731701954952,0.4367607,214.52,214.51,66.4785608]
[1731701955151,0.4367607,214.52,214.51,79.43689704]
[1731701959150,0.8,214.55,214.54,0.44465462]
[1731701959448,0.8,214.55,214.54,51.01163233]
[1731701960446,0.8,214.55,214.54,55.67273233]
[1731701961523,6.287,214.67,214.58,0.34465462]
[1731701961848,6.287,214.67,214.63,12.95833624]
[1731701962148,6.287,214.67,214.64,4.6589]
[1731701962344,6.287,214.67,214.64,17.61723624]
[1731701962550,0.3725468,214.7,214.64,17.61723624]
[1731701962551,0.3725468,214.7,214.64,29.26463624]
[1731701962739,13.33088304,214.7,214.64,16.3063]
[1731701963749,12.95833624,214.69,214.64,16.3063]
[1731701963936,13.33088304,214.7,214.64,16.3063]
[1731701964642,9.48736062,214.7,214.65,12.95833624]
[1731701964825,9.48736062,214.7,214.64,12.95833624]
[1731701965022,22.44569686,214.7,214.64,0.12549]
[1731701965627,9.48736062,214.7,214.65,12.95833624]
[1731701965834,9.48736062,214.7,214.64,13.08382624]
[1731701966244,22.44569686,214.7,214.65,4.6587]
[1731701966828,17.73853447,214.7,214.65,4.6587]
[1731701967559,9.48736062,214.7,214.65,4.6587]
[1731701967926,8.25117385,214.69,214.65,4.6587]
[1731701968128,9.48736062,214.7,214.65,4.6587]
[1731701968554,9.48736062,214.7,214.66,0.12549]
[1731701969643,9.48736062,214.7,214.67,4.6583]
[1731701969843,17.73853447,214.7,214.67,4.1583]
[1731701970234,9.48736062,214.7,214.67,4.1583]
[1731701971334,0.3725468,214.7,214.67,4.1583]
[1731701972546,8.62372065,214.7,214.67,4.1583]
[1731701972747,0.3725468,214.7,214.67,4.1583]
[1731701973437,0.3725468,214.7,214.67,12.40947385]
[1731701973854,0.3725468,214.7,214.68,0.21916462]
[1731701974643,0.3725468,214.7,214.68,8.47033847]
[1731701975254,0.3725468,214.7,214.68,0.21916462]
[1731701976358,0.3725468,214.7,214.69,58.06179716]
[1731701976564,0.3725468,214.7,214.69,64.20655604]
[1731701979137,0.3725468,214.7,214.69,63.27527135]
[1731701980759,4.6543,214.86,214.72,0.34465462]
[1731701980965,8.25117385,214.82,214.76,0.12549]
[1731701981163,8.25117385,214.82,214.76,8.37666385]
[1731701981860,8.25117385,214.82,214.75,0.09367462]
[1731701982060,6.4409,214.88,214.77,0.21916462]
[1731701982237,8.25117385,214.82,214.77,0.12549]
[1731701982744,8.25117385,214.83,214.77,0.12549]
[1731701982939,6.4409,214.88,214.78,24.76603847]
[1731701983143,21.827,214.92,214.79,20.12549]
[1731701983343,8.25117385,214.89,214.8,0.21916462]
[1731701983560,8.25117385,214.86,214.79,20.0]
[1731701983763,21.827,214.92,214.81,8.25117385]
[1731701983969,8.25117385,214.88,214.81,8.25117385]
[1731701984266,0.4775318,214.93,214.87,0.1]
[1731701984457,0.4775318,214.93,214.92,0.21916462]
[1731701984642,0.4775318,214.93,214.88,13.42594547]
[1731701984849,0.4775318,214.93,214.92,28.37666385]
[1731701985161,0.4775318,214.93,214.92,32.51121461]
[1731701985466,0.4775318,214.93,214.92,24.99745462]
[1731701985643,0.4775318,214.93,214.92,24.77829]
[1731701985843,0.4775318,214.93,214.92,33.02946385]
[1731701986043,0.4775318,214.93,214.92,33.12313847]
[1731701986255,0.4775318,214.93,214.92,39.5056579]
[1731701986468,5.0,215.0,214.95,0.1]
[1731701986647,5.0,215.0,214.99,0.44465462]
[1731701986845,5.0,215.0,214.99,33.28680318]
[1731701987053,5.0,215.0,214.99,37.93810318]
[1731701987252,4.6238,215.0,214.99,43.60098817]
[1731701987877,0.4775318,215.16,215.06,0.09367462]
[1731701988056,13.31968036,215.16,215.08,12.84214856]
[1731701988367,0.4775318,215.16,215.1,12.84214856]
[1731701988668,0.4775318,215.16,215.12,12.84214856]
[1731701988860,9.23944924,215.16,215.11,12.84214856]
[1731701989049,0.4775318,215.16,215.11,4.6487]
[1731701990253,0.4775318,215.16,215.09,29.11404856]
[1731701990667,13.31968036,215.16,215.09,29.11404856]
[1731701991580,12.84214856,215.15,215.08,12.84214856]
[1731701992063,12.84214856,215.14,215.07,12.84214856]